fUSD/lending_fUSD_20260530
["ID","MTS","AMOUNT","RATE_DAILY","PERIOD"]
[423456633,1780135843000,-375.7962438,0.00015,2]
[423456636,1780135843000,-47695.00893938,0.00015,2]
[423456634,1780135843000,-1984.30773036,0.00015,2]
[423456647,1780135844000,-827.47686305,0.00015,2]
[423456643,1780135844000,-500.0,0.00013698,2]
[423456645,1780135844000,-500.0,0.00013698,2]
[423456644,1780135844000,-500.0,0.00013698,2]
[423456646,1780135844000,-211.51532557,0.000149,2]
[423456653,1780135846000,-3191.24679252,0.00015,2]
[423456652,1780135846000,-7814.08218856,0.00015,2]
[423456650,1780135846000,-3638.0,0.00014858,2]
[423456651,1780135846000,-872.93238968,0.00015,2]
[423456692,1780136153000,152.0,0.00011649,7]
[423456694,1780136405000,587.39,0.00027508,120]
[423456712,1780136940000,1000.0,0.0002808,120]
[423456713,1780137002000,192.92838238,0.0001,2]
[423456729,1780137032000,-300.0,0.00012138,2]
[423456739,1780137032000,-299.99,0.00012893,2]
[423456736,1780137032000,-11100.0,0.000128,4]
[423456732,1780137032000,-200.0,0.00012323,2]
[423456734,1780137032000,-482.41,0.00012329,2]
[423456730,1780137032000,-2000.0,0.00012139,2]
[423456735,1780137032000,-5500.0,0.000127,4]
[423456737,1780137032000,-163.92,0.00012821,2]
[423456723,1780137032000,-4500.86161762,0.0001,2]
[423456733,1780137032000,-1600.0,0.00012325,2]
[423456728,1780137032000,-1200.0,0.00012136,2]
[423456738,1780137032000,-150.0,0.00012892,2]
[423456727,1780137032000,-222.86,0.00012111,2]
[423456726,1780137032000,-250.0,0.00012102,2]
[423456725,1780137032000,-250.0,0.00012047,2]
[423456724,1780137032000,-500.0,0.00011956,2]
[423456731,1780137032000,-150.0,0.00012316,2]
[423456741,1780137032000,-499.99,0.00012893,2]
[423456748,1780137032000,-16600.0,0.000129,4]
[423456740,1780137032000,-8310.54,0.00012893,2]
[423456764,1780137032000,-113783.04409326,0.00013125,2]
[423456762,1780137032000,-400.0,0.00013125,2]
[423456761,1780137032000,-150.0,0.00013125,2]
[423456759,1780137032000,-151.0,0.00013122,2]
[423456758,1780137032000,-151.0,0.00013122,2]
[423456765,1780137032000,-64185.27867837,0.00013125,2]
[423456757,1780137032000,-12494.25975951,0.0001306,2]
[423456755,1780137032000,-2468.10635106,0.00013052,2]
[423456743,1780137032000,-999.99,0.00012893,2]
[423456746,1780137032000,-4272.505,0.00012899,2]
[423456747,1780137032000,-317.99,0.00012899,2]
[423456749,1780137032000,-3729.61082577,0.00013025,2]
[423456745,1780137032000,-9999.99,0.00012893,2]
[423456744,1780137032000,-150.99,0.00012893,2]
[423456751,1780137032000,-567.59195909,0.00013045,2]
[423456742,1780137032000,-161.9,0.00012893,2]
[423456753,1780137032000,-179.8138151,0.00013052,2]
[423456773,1780137038000,-674.80311392,0.00013125,2]
[423456772,1780137038000,-396.91809157,0.00013125,2]
[423456771,1780137038000,-6529.03722993,0.00013125,2]
[423456770,1780137038000,-1000.0,0.00012711,2]
[423456793,1780137040000,-413.685,0.00013125,2]
[423456871,1780137128000,166.07,0.00022,120]
[423456872,1780137270000,150.0,0.00028082,120]
[423457018,1780137555000,1103.45,0.00028082,120]
[423457078,1780138128000,1290.08,0.00028,120]
[423457080,1780138141000,1000.0,0.00028081,120]
[423457085,1780138160000,638.6,0.00028,120]
[423457115,1780138232000,-129.54900032,0.00011673,2]
[423457114,1780138232000,-50.26957481,0.00011673,2]
[423457113,1780138232000,-167.43081086,0.00011673,2]
[423457116,1780138232000,-185.2724655,0.00011673,2]
[423457112,1780138232000,-500.0,0.00011673,2]
[423457106,1780138232000,-114.49785269,0.00011673,2]
[423457111,1780138232000,-500.0,0.00011673,2]
[423457110,1780138232000,-295.7464457,0.00011673,2]
[423457109,1780138232000,-197.78334484,0.00011673,2]
[423457108,1780138232000,-302.21665516,0.00011673,2]
[423457103,1780138232000,-2008.73,0.00011634,2]
[423457105,1780138232000,-150.0,0.00011672,2]
[423457102,1780138232000,-489.07913661,0.00011631,2]
[423457094,1780138232000,-8879.76377078,0.00011213,2]
[423457104,1780138232000,-200.70074595,0.00011644,2]
[423457100,1780138232000,-500.0,0.00011631,2]
[423457101,1780138232000,-500.0,0.00011631,2]
[423457097,1780138232000,-157.53,0.00011453,2]
[423457098,1780138232000,-1200.0,0.0001163,2]
[423457096,1780138232000,-2000.0,0.00011228,2]
[423457093,1780138232000,-5032.08514418,0.00011213,2]
[423457092,1780138232000,-624.22108504,0.00011213,2]
[423457095,1780138232000,-591.49,0.00011222,2]
[423457090,1780138232000,-175.02,0.00010721,2]
[423457091,1780138232000,-250.0,0.00010972,2]
[423457117,1780138232000,-314.7275345,0.00011673,2]
[423457107,1780138232000,-398.15934437,0.00011673,2]
[423457129,1780138232000,-500.0,0.00011856,2]
[423457099,1780138232000,-500.0,0.00011631,2]
[423457122,1780138232000,-46309.22,0.00011674,2]
[423457127,1780138232000,-150.0,0.00011811,2]
[423457151,1780138232000,-4175.8268,0.00012745,2]
[423457149,1780138232000,-184.82929913,0.00012745,2]
[423457147,1780138232000,-12303.53323252,0.00012723,2]
[423457145,1780138232000,-8295.68770834,0.000127,2]
[423457143,1780138232000,-12303.53323252,0.00012684,2]
[423457138,1780138232000,-14000.0,0.000126,4]
[423457153,1780138232000,-4502.60577039,0.00012745,2]
[423457141,1780138232000,-12303.53323259,0.00012645,2]
[423457140,1780138232000,-2000.0,0.00012631,2]
[423457137,1780138232000,-9300.0,0.000125,4]
[423457135,1780138232000,-4600.0,0.000124,4]
[423457134,1780138232000,-171.23,0.00012338,2]
[423457133,1780138232000,-1008.61,0.00012329,2]
[423457144,1780138232000,-18700.0,0.000127,4]
[423457136,1780138232000,-268.58058186,0.00012449,7]
[423457142,1780138232000,-157.53,0.00012659,2]
[423457128,1780138232000,-175.02,0.0001185,2]
[423457130,1780138232000,-320.0,0.0001195,2]
[423457119,1780138232000,-500.0,0.00011673,2]
[423457125,1780138232000,-200.0,0.00011791,2]
[423457123,1780138232000,-500.0,0.00011712,2]
[423457124,1780138232000,-165.37,0.00011726,2]
[423457118,1780138232000,-500.0,0.00011673,2]
[423457121,1780138232000,-500.0,0.00011673,2]
[423457126,1780138232000,-250.0,0.00011793,2]
[423457132,1780138232000,-157.53,0.00012056,2]
[423457131,1780138232000,-475.85,0.00012,2]
[423457120,1780138232000,-215.09053572,0.00011673,2]
[423457171,1780138233000,-23400.0,0.000128,4]
[423457169,1780138233000,-32487.97696547,0.00012779,2]
[423457180,1780138233000,-150.0,0.00012822,2]
[423457172,1780138233000,-12303.53323252,0.00012801,2]
[423457174,1780138233000,-150.0,0.00012822,2]
[423457177,1780138233000,-150.0,0.00012822,2]
[423457175,1780138233000,-150.0,0.00012822,2]
[423457170,1780138233000,-1680.0,0.00012793,2]
[423457179,1780138233000,-150.0,0.00012822,2]
[423457173,1780138233000,-32487.97696547,0.00012806,2]
[423457168,1780138233000,-1065.97161102,0.00012777,2]
[423457163,1780138233000,-32487.97696552,0.00012752,2]
[423457167,1780138233000,-12303.53323252,0.00012762,2]
[423457165,1780138233000,-211.51532558,0.00012752,2]
[423457164,1780138233000,-1732.08919103,0.00012752,2]
[423457161,1780138233000,-255.0,0.00012745,2]
[423457162,1780138233000,-209.78278429,0.00012752,2]
[423457160,1780138233000,-500.0,0.00012745,2]
[423457158,1780138233000,-1149.99016759,0.00012745,2]
[423457159,1780138233000,-25383.88391603,0.00012745,2]
[423457156,1780138233000,-413.48160874,0.00012745,2]
[423457155,1780138233000,-3683.35,0.00012745,2]
[423457157,1780138233000,-8073.70803725,0.00012745,2]
[423457178,1780138233000,-150.0,0.00012822,2]
[423457166,1780138233000,-3181.93066709,0.00012761,2]
[423457176,1780138233000,-150.0,0.00012822,2]
[423457185,1780138233000,-12303.53323252,0.00012841,2]
[423457193,1780138233000,-77079.43725382,0.00012845,2]
[423457205,1780138233000,-303.8818997,0.00012845,2]
[423457206,1780138233000,-1512.86999631,0.00012845,2]
[423457208,1780138233000,-10073.7186553,0.00012845,2]
[423457192,1780138233000,-4726.56318739,0.00012845,2]
[423457207,1780138233000,-209.12966642,0.00011655,2]
[423457204,1780138233000,-1216.57072602,0.00012845,2]
[423457202,1780138233000,-2649.0,0.00012845,2]
[423457200,1780138233000,-2490.57914543,0.00012845,2]
[423457201,1780138233000,-584.0,0.00012845,2]
[423457199,1780138233000,-971.72153587,0.00012845,2]
[423457197,1780138233000,-3200.41564869,0.00012845,2]
[423457198,1780138233000,-417.51182976,0.00012845,2]
[423457203,1780138233000,-385.00293256,0.00012845,2]
[423457195,1780138233000,-17620.08426765,0.00012845,2]
[423457196,1780138233000,-947.66880428,0.00012845,2]
[423457182,1780138233000,-150.0,0.00012822,2]
[423457184,1780138233000,-176.46448349,0.00012835,2]
[423457181,1780138233000,-150.0,0.00012822,2]
[423457187,1780138233000,-300.0,0.00012844,2]
[423457183,1780138233000,-32487.97696547,0.00012834,2]
[423457188,1780138233000,-300.0,0.00012844,2]
[423457189,1780138233000,-150.0,0.00012845,2]
[423457190,1780138233000,-400.0,0.00012845,2]
[423457191,1780138233000,-400.0,0.00012845,2]
[423457194,1780138233000,-4024.8871168,0.00012845,2]
[423457186,1780138233000,-150.0,0.00012841,2]
[423457251,1780138239000,-172.47512054,0.00012893,2]
[423457252,1780138239000,-150.0,0.00012897,2]
[423457247,1780138239000,-13497.1,0.00012893,2]
[423457245,1780138239000,-150.0,0.00012887,2]
[423457244,1780138239000,-150.0,0.0001288,2]
[423457246,1780138239000,-32487.97696547,0.00012888,2]
[423457249,1780138239000,-9999.99,0.00012893,2]
[423457250,1780138239000,-820.17,0.00012893,2]
[423457239,1780138239000,-150.0,0.0001286,2]
[423457243,1780138239000,-12303.53323252,0.0001288,2]
[423457242,1780138239000,-275.63,0.00012877,2]
[423457240,1780138239000,-32487.97696547,0.00012861,2]
[423457241,1780138239000,-150.0,0.00012875,2]
[423457237,1780138239000,-500.0,0.00011353,2]
[423457238,1780138239000,-2376522.65018781,0.00012845,2]
[423457253,1780138239000,-150.0,0.00012899,2]
[423457248,1780138239000,-150.99,0.00012893,2]
[423457255,1780138239000,-150.0,0.00012911,2]
[423457271,1780138239000,-150.0,0.00012995,2]
[423457257,1780138239000,-150.0,0.00012918,2]
[423457274,1780138239000,-3743.12247816,0.00013,2]
[423457273,1780138239000,-32487.97696547,0.00012997,2]
[423457270,1780138239000,-150.0,0.0001298,2]
[423457265,1780138239000,-150.0,0.00012957,2]
[423457272,1780138239000,-12303.53323252,0.00012997,2]
[423457269,1780138239000,-150.0,0.00012976,2]
[423457268,1780138239000,-150.0,0.00012972,2]
[423457267,1780138239000,-32487.97696547,0.0001297,2]
[423457259,1780138239000,-150.0,0.00012927,2]
[423457263,1780138239000,-150.0,0.00012951,2]
[423457264,1780138239000,-150.0,0.00012951,2]
[423457262,1780138239000,-150.0,0.00012945,2]
[423457260,1780138239000,-150.0,0.00012937,2]
[423457258,1780138239000,-12303.53323252,0.00012919,2]
[423457256,1780138239000,-32487.97696547,0.00012915,2]
[423457254,1780138239000,-4600.0,0.000129,4]
[423457261,1780138239000,-32487.97696547,0.00012943,2]
[423457266,1780138239000,-12303.53323252,0.00012958,2]
[423457307,1780138240000,-500.0,0.00013097,2]
[423457311,1780138240000,-500.0,0.00013097,2]
[423457306,1780138240000,-500.0,0.00013097,2]
[423457300,1780138240000,-974574.3346682,0.00013097,2]
[423457302,1780138240000,-500.0,0.00013097,2]
[423457301,1780138240000,-500.0,0.00013097,2]
[423457308,1780138240000,-500.0,0.00013097,2]
[423457305,1780138240000,-500.0,0.00013097,2]
[423457310,1780138240000,-500.0,0.00013097,2]
[423457314,1780138240000,-500.0,0.00013097,2]
[423457315,1780138240000,-500.0,0.00013097,2]
[423457309,1780138240000,-500.0,0.00013097,2]
[423457313,1780138240000,-500.0,0.00013097,2]
[423457317,1780138240000,-500.0,0.00013097,2]
[423457318,1780138240000,-500.0,0.00013097,2]
[423457328,1780138240000,-500.0,0.00013097,2]
[423457303,1780138240000,-500.0,0.00013097,2]
[423457326,1780138240000,-500.0,0.00013097,2]
[423457312,1780138240000,-500.0,0.00013097,2]
[423457298,1780138240000,-1691.0172045,0.00013097,2]
[423457289,1780138240000,-150.0,0.00013081,2]
[423457299,1780138240000,-2751.9225664,0.00013097,2]
[423457275,1780138240000,-150.0,0.00013,2]
[423457278,1780138240000,-150.0,0.00013016,2]
[423457276,1780138240000,-8295.68770834,0.00013014,2]
[423457279,1780138240000,-500.0,0.00013019,2]
[423457281,1780138240000,-150.0,0.00013033,2]
[423457280,1780138240000,-400.0,0.00013032,2]
[423457277,1780138240000,-150.0,0.00013014,2]
[423457282,1780138240000,-150.0,0.00013034,2]
[423457283,1780138240000,-150.0,0.00013047,2]
[423457304,1780138240000,-500.0,0.00013097,2]
[423457286,1780138240000,-150.0,0.00013072,2]
[423457288,1780138240000,-150.0,0.00013081,2]
[423457285,1780138240000,-150.0,0.00013053,2]
[423457323,1780138240000,-500.0,0.00013097,2]
[423457287,1780138240000,-151.0,0.00013079,2]
[423457294,1780138240000,-150.0,0.00013091,2]
[423457291,1780138240000,-150.0,0.00013089,2]
[423457295,1780138240000,-45326.9091166,0.00013097,2]
[423457296,1780138240000,-167699.3968425,0.00013097,2]
[423457297,1780138240000,-3046.1427242,0.00013097,2]
[423457290,1780138240000,-150.0,0.00013086,2]
[423457327,1780138240000,-500.0,0.00013097,2]
[423457324,1780138240000,-500.0,0.00013097,2]
[423457320,1780138240000,-500.0,0.00013097,2]
[423457347,1780138240000,-150.0,0.00013111,2]
[423457354,1780138240000,-150.0,0.00013146,2]
[423457348,1780138240000,-150.0,0.00013122,2]
[423457350,1780138240000,-151.0,0.00013122,2]
[423457353,1780138240000,-150.0,0.00013139,2]
[423457356,1780138240000,-150.0,0.00013168,2]
[423457358,1780138240000,-150.0,0.00013188,2]
[423457359,1780138240000,-150.0,0.00013191,2]
[423457357,1780138240000,-150.0,0.00013178,2]
[423457321,1780138240000,-500.0,0.00013097,2]
[423457360,1780138240000,-150.0,0.00013197,2]
[423457367,1780138240000,-150.0,0.00013245,2]
[423457364,1780138240000,-215.58360558,0.00013217,2]
[423457362,1780138240000,-150.0,0.0001321,2]
[423457366,1780138240000,-150.0,0.00013244,2]
[423457365,1780138240000,-150.0,0.00013226,2]
[423457363,1780138240000,-150.0,0.0001321,2]
[423457369,1780138240000,-500.0,0.00013251,2]
[423457368,1780138240000,-500.0,0.00013251,2]
[423457352,1780138240000,-1065.97161098,0.00013131,2]
[423457349,1780138240000,-151.0,0.00013122,2]
[423457361,1780138240000,-150.0,0.00013207,2]
[423457351,1780138240000,-150.0,0.0001313,2]
[423457355,1780138240000,-150.0,0.00013149,2]
[423457319,1780138240000,-500.0,0.00013097,2]
[423457325,1780138240000,-500.0,0.00013097,2]
[423457329,1780138240000,-500.0,0.00013097,2]
[423457330,1780138240000,-500.0,0.00013097,2]
[423457332,1780138240000,-500.0,0.00013097,2]
[423457331,1780138240000,-500.0,0.00013097,2]
[423457338,1780138240000,-10228.2283387,0.00013097,2]
[423457339,1780138240000,-8200.5117032,0.00013097,2]
[423457336,1780138240000,-151.0,0.00013097,2]
[423457333,1780138240000,-500.0,0.00013097,2]
[423457335,1780138240000,-3054.0095709,0.00013097,2]
[423457337,1780138240000,-151.0,0.00013097,2]
[423457344,1780138240000,-9814.23720301,0.00013097,2]
[423457345,1780138240000,-9607.86716912,0.00013097,2]
[423457343,1780138240000,-3957.0,0.00013097,2]
[423457346,1780138240000,-150.0,0.00013107,2]
[423457342,1780138240000,-273.05334531,0.00013097,2]
[423457340,1780138240000,-151.0,0.00013097,2]
[423457334,1780138240000,-298.342053,0.00013097,2]
[423457341,1780138240000,-480505.65589526,0.00013097,2]
[423457381,1780138241000,-500.0,0.00013251,2]
[423457388,1780138241000,-150.0,0.00013251,2]
[423457390,1780138241000,-150.0,0.00013251,2]
[423457391,1780138241000,-150.0,0.00013251,2]
[423457389,1780138241000,-209.4612352,0.00013251,2]
[423457387,1780138241000,-150.0,0.00013251,2]
[423457386,1780138241000,-500.0,0.00013251,2]
[423457383,1780138241000,-500.0,0.00013251,2]
[423457382,1780138241000,-500.0,0.00013251,2]
[423457385,1780138241000,-500.0,0.00013251,2]
[423457378,1780138241000,-500.0,0.00013251,2]
[423457372,1780138241000,-500.0,0.00013251,2]
[423457379,1780138241000,-500.0,0.00013251,2]
[423457384,1780138241000,-500.0,0.00013251,2]
[423457377,1780138241000,-500.0,0.00013251,2]
[423457373,1780138241000,-500.0,0.00013251,2]
[423457375,1780138241000,-500.0,0.00013251,2]
[423457376,1780138241000,-500.0,0.00013251,2]
[423457374,1780138241000,-500.0,0.00013251,2]
[423457371,1780138241000,-500.0,0.00013251,2]
[423457394,1780138241000,-500.0,0.00013251,2]
[423457370,1780138241000,-503.03688608,0.00013251,2]
[423457380,1780138241000,-500.0,0.00013251,2]
[423457395,1780138241000,-803.0,0.00013251,2]
[423457417,1780138241000,-803.0,0.00013251,2]
[423457396,1780138241000,-500.0,0.00013251,2]
[423457416,1780138241000,-492.60865898,0.00013251,2]
[423457418,1780138241000,-67.26298338,0.00013251,2]
[423457415,1780138241000,-310.39134102,0.00013251,2]
[423457409,1780138241000,-803.0,0.00013251,2]
[423457411,1780138241000,-803.0,0.00013251,2]
[423457413,1780138241000,-803.0,0.00013251,2]
[423457407,1780138241000,-803.0,0.00013251,2]
[423457414,1780138241000,-803.0,0.00013251,2]
[423457412,1780138241000,-803.0,0.00013251,2]
[423457410,1780138241000,-803.0,0.00013251,2]
[423457408,1780138241000,-803.0,0.00013251,2]
[423457392,1780138241000,-803.0,0.00013251,2]
[423457406,1780138241000,-361.94203136,0.00013251,2]
[423457404,1780138241000,-500.0,0.00013251,2]
[423457402,1780138241000,-500.0,0.00013251,2]
[423457401,1780138241000,-500.0,0.00013251,2]
[423457405,1780138241000,-803.0,0.00013251,2]
[423457399,1780138241000,-803.0,0.00013251,2]
[423457400,1780138241000,-500.0,0.00013251,2]
[423457398,1780138241000,-500.0,0.00013251,2]
[423457397,1780138241000,-803.0,0.00013251,2]
[423457393,1780138241000,-195.43033859,0.00013251,2]
[423457403,1780138241000,-803.0,0.00013251,2]
[423457467,1780138242000,-150.0,0.00013251,2]
[423457464,1780138242000,-1249.0,0.00013251,2]
[423457465,1780138242000,-453.0,0.00013251,2]
[423457458,1780138242000,-526.06597292,0.00013251,2]
[423457453,1780138242000,-500.0,0.00013251,2]
[423457451,1780138242000,-500.0,0.00013251,2]
[423457460,1780138242000,-1249.0,0.00013251,2]
[423457466,1780138242000,-1249.0,0.00013251,2]
[423457462,1780138242000,-453.0,0.00013251,2]
[423457469,1780138242000,-1249.0,0.00013251,2]
[423457475,1780138242000,-500.0,0.00013251,2]
[423457470,1780138242000,-278.88036096,0.00013251,2]
[423457471,1780138242000,-453.0,0.00013251,2]
[423457474,1780138242000,-1249.0,0.00013251,2]
[423457472,1780138242000,-1249.0,0.00013251,2]
[423457479,1780138242000,-1249.0,0.00013251,2]
[423457478,1780138242000,-500.0,0.00013251,2]
[423457477,1780138242000,-1249.0,0.00013251,2]
[423457476,1780138242000,-453.0,0.00013251,2]
[423457480,1780138242000,-500.0,0.00013251,2]
[423457449,1780138242000,-500.0,0.00013251,2]
[423457468,1780138242000,-453.0,0.00013251,2]
[423457455,1780138242000,-500.0,0.00013251,2]
[423457432,1780138242000,-500.0,0.00013251,2]
[423457447,1780138242000,-500.0,0.00013251,2]
[423457419,1780138242000,-735.73701662,0.00013251,2]
[423457420,1780138242000,-803.0,0.00013251,2]
[423457422,1780138242000,-803.0,0.00013251,2]
[423457425,1780138242000,-803.0,0.00013251,2]
[423457423,1780138242000,-803.0,0.00013251,2]
[423457421,1780138242000,-803.0,0.00013251,2]
[423457424,1780138242000,-803.0,0.00013251,2]
[423457429,1780138242000,-500.0,0.00013251,2]
[423457426,1780138242000,-816.25368782,0.00013251,2]
[423457428,1780138242000,-502.18652222,0.00013251,2]
[423457445,1780138242000,-500.0,0.00013251,2]
[423457427,1780138242000,-500.0,0.00013251,2]
[423457486,1780138242000,-500.0,0.00013251,2]
[423457435,1780138242000,-500.0,0.00013251,2]
[423457436,1780138242000,-500.0,0.00013251,2]
[423457442,1780138242000,-500.0,0.00013251,2]
[423457433,1780138242000,-500.0,0.00013251,2]
[423457431,1780138242000,-500.0,0.00013251,2]
[423457437,1780138242000,-500.0,0.00013251,2]
[423457434,1780138242000,-500.0,0.00013251,2]
[423457440,1780138242000,-500.0,0.00013251,2]
[423457438,1780138242000,-500.0,0.00013251,2]
[423457430,1780138242000,-500.0,0.00013251,2]
[423457482,1780138242000,-1249.0,0.00013251,2]
[423457473,1780138242000,-453.0,0.00013251,2]
[423457481,1780138242000,-453.0,0.00013251,2]
[423457515,1780138242000,-1249.0,0.00013251,2]
[423457516,1780138242000,-150.0,0.00013251,2]
[423457512,1780138242000,-1249.0,0.00013251,2]
[423457519,1780138242000,-1249.0,0.00013251,2]
[423457511,1780138242000,-453.0,0.00013251,2]
[423457518,1780138242000,-174.37069545,0.00013251,2]
[423457514,1780138242000,-453.0,0.00013251,2]
[423457513,1780138242000,-453.0,0.00013251,2]
[423457520,1780138242000,-453.0,0.00013251,2]
[423457531,1780138242000,-500.0,0.00013251,2]
[423457509,1780138242000,-453.0,0.00013251,2]
[423457528,1780138242000,-500.0,0.00013251,2]
[423457526,1780138242000,-500.0,0.00013251,2]
[423457524,1780138242000,-1073.17599583,0.00013251,2]
[423457522,1780138242000,-453.0,0.00013251,2]
[423457527,1780138242000,-500.0,0.00013251,2]
[423457521,1780138242000,-1249.0,0.00013251,2]
[423457523,1780138242000,-185.27577652,0.00013251,2]
[423457530,1780138242000,-500.0,0.00013251,2]
[423457529,1780138242000,-500.0,0.00013251,2]
[423457483,1780138242000,-500.0,0.00013251,2]
[423457532,1780138242000,-500.0,0.00013251,2]
[423457525,1780138242000,-468.0,0.00013251,2]
[423457510,1780138242000,-1249.0,0.00013251,2]
[423457517,1780138242000,-150.0,0.00013251,2]
[423457506,1780138242000,-1249.0,0.00013251,2]
[423457485,1780138242000,-1249.0,0.00013251,2]
[423457507,1780138242000,-453.0,0.00013251,2]
[423457487,1780138242000,-453.0,0.00013251,2]
[423457489,1780138242000,-500.0,0.00013251,2]
[423457490,1780138242000,-453.0,0.00013251,2]
[423457492,1780138242000,-1249.0,0.00013251,2]
[423457491,1780138242000,-500.0,0.00013251,2]
[423457497,1780138242000,-453.0,0.00013251,2]
[423457498,1780138242000,-1249.0,0.00013251,2]
[423457496,1780138242000,-1249.0,0.00013251,2]
[423457488,1780138242000,-1249.0,0.00013251,2]
[423457484,1780138242000,-453.0,0.00013251,2]
[423457505,1780138242000,-453.0,0.00013251,2]
[423457494,1780138242000,-500.0,0.00013251,2]
[423457493,1780138242000,-1249.0,0.00013251,2]
[423457499,1780138242000,-150.0,0.00013251,2]
[423457502,1780138242000,-453.0,0.00013251,2]
[423457504,1780138242000,-1249.0,0.00013251,2]
[423457500,1780138242000,-453.0,0.00013251,2]
[423457508,1780138242000,-1249.0,0.00013251,2]
[423457501,1780138242000,-195.18166112,0.00013251,2]
[423457503,1780138242000,-453.0,0.00013251,2]
[423457495,1780138242000,-453.0,0.00013251,2]
[423457568,1780138243000,-150.0,0.00013392,2]
[423457566,1780138243000,-150.0,0.00013361,2]
[423457564,1780138243000,-150.0,0.0001335,2]
[423457563,1780138243000,-150.0,0.00013347,2]
[423457590,1780138243000,-150.0,0.00013508,2]
[423457560,1780138243000,-150.0,0.0001334,2]
[423457565,1780138243000,-150.0,0.00013356,2]
[423457567,1780138243000,-150.0,0.0001338,2]
[423457555,1780138243000,-150.0,0.00013297,2]
[423457562,1780138243000,-150.0,0.00013342,2]
[423457572,1780138243000,-150.0,0.00013405,2]
[423457570,1780138243000,-150.0,0.00013399,2]
[423457574,1780138243000,-150.0,0.00013422,2]
[423457569,1780138243000,-424.0,0.00013397,2]
[423457573,1780138243000,-150.0,0.00013419,2]
[423457575,1780138243000,-150.0,0.00013438,2]
[423457571,1780138243000,-150.0,0.00013402,2]
[423457589,1780138243000,-150.0,0.00013497,2]
[423457588,1780138243000,-150.0,0.00013496,2]
[423457592,1780138243000,-150.0,0.00013534,2]
[423457591,1780138243000,-150.0,0.00013515,2]
[423457561,1780138243000,-150.0,0.0001334,2]
[423457576,1780138243000,-320.0,0.00013444,2]
[423457558,1780138243000,-8295.68770834,0.00013329,2]
[423457543,1780138243000,-500.0,0.00013251,2]
[423457556,1780138243000,-150.0,0.00013303,2]
[423457580,1780138243000,-150.0,0.00013457,2]
[423457533,1780138243000,-500.0,0.00013251,2]
[423457537,1780138243000,-500.0,0.00013251,2]
[423457534,1780138243000,-500.0,0.00013251,2]
[423457542,1780138243000,-411.08460741,0.00013251,2]
[423457536,1780138243000,-500.0,0.00013251,2]
[423457538,1780138243000,-500.0,0.00013251,2]
[423457540,1780138243000,-500.0,0.00013251,2]
[423457541,1780138243000,-390.08039902,0.00013251,2]
[423457539,1780138243000,-500.0,0.00013251,2]
[423457557,1780138243000,-150.0,0.00013322,2]
[423457535,1780138243000,-500.0,0.00013251,2]
[423457547,1780138243000,-150.0,0.00013251,2]
[423457544,1780138243000,-500.0,0.00013251,2]
[423457546,1780138243000,-362.24079347,0.00013251,2]
[423457549,1780138243000,-150.0,0.00013267,2]
[423457553,1780138243000,-150.0,0.00013297,2]
[423457552,1780138243000,-150.0,0.00013284,2]
[423457551,1780138243000,-150.0,0.00013275,2]
[423457554,1780138243000,-150.0,0.00013297,2]